[Event "Titled Tuesday Blitz March 29 Early 2022"]
[White "Xu, Yi"]
[Black "Piesik, Piotr"]
[WhiteFideId "8605564"]
[BlackFideId "1136194"]
[WhiteElo "2471"]
[BlackElo "2190"]
[Result "1/2-1/2"]
[Round "04"]
[TimeControl "180+1"]
[Date "2022.03.29"]
[WhiteClock "0:00:08"]
[BlackClock "0:00:22"]

1. e4 {[%clk 0:03:00]}  g6 {[%clk 0:02:58]} 2. d4 {[%clk 0:03:00]}  Bg7 {[%clk 0:02:59]} 3. Nc3 {[%clk 0:03:01]}  c6 {[%clk 0:02:59]} 4. f4 {[%clk 0:03:01]}  d5 {[%clk 0:02:59]} 5. e5 {[%clk 0:03:01]}  Nh6 {[%clk 0:02:59]} 6. Nf3 {[%clk 0:02:58]}  Bg4 {[%clk 0:02:59]} 7. Be3 {[%clk 0:02:51]}  Nf5 {[%clk 0:02:59]} 8. Bf2 {[%clk 0:02:51]}  h5 {[%clk 0:02:59]} 9. Bd3 {[%clk 0:02:46]}  e6 {[%clk 0:02:57]} 10. Qe2 {[%clk 0:02:41]}  h4 {[%clk 0:02:55]} 11. O-O-O {[%clk 0:02:36]}  h3 {[%clk 0:02:49]} 12. g3 {[%clk 0:02:36]}  Nd7 {[%clk 0:02:48]} 13. Rdf1 {[%clk 0:02:27]}  b5 {[%clk 0:02:47]} 14. Nb1 {[%clk 0:02:24]}  Qa5 {[%clk 0:02:43]} 15. a3 {[%clk 0:02:22]}  b4 {[%clk 0:02:41]} 16. Bxf5 {[%clk 0:02:05]}  gxf5 {[%clk 0:02:36]} 17. Be1 {[%clk 0:02:04]}  bxa3 {[%clk 0:02:10]} 18. Bxa5 {[%clk 0:02:02]}  a2 {[%clk 0:02:10]} 19. Bb4 {[%clk 0:01:49]}  a1=Q {[%clk 0:02:10]} 20. Ba3 {[%clk 0:01:47]}  Bf8 {[%clk 0:02:04]} 21. Qa6 {[%clk 0:01:34]}  Bxa3 {[%clk 0:01:59]} 22. Qxa3 {[%clk 0:01:34]}  Qxa3 {[%clk 0:01:58]} 23. Nxa3 {[%clk 0:01:34]}  Bxf3 {[%clk 0:01:57]} 24. Rxf3 {[%clk 0:01:34]}  Ke7 {[%clk 0:01:54]} 25. Rd1 {[%clk 0:01:29]}  f6 {[%clk 0:01:50]} 26. Rc3 {[%clk 0:01:28]}  Rac8 {[%clk 0:01:48]} 27. b4 {[%clk 0:01:26]}  fxe5 {[%clk 0:01:45]} 28. dxe5 {[%clk 0:01:26]}  c5 {[%clk 0:01:41]} 29. bxc5 {[%clk 0:01:24]}  Rxc5 {[%clk 0:01:42]} 30. Rxc5 {[%clk 0:01:23]}  Nxc5 {[%clk 0:01:43]} 31. Nb5 {[%clk 0:01:23]}  a6 {[%clk 0:01:39]} 32. Nd6 {[%clk 0:01:23]}  Rb8 {[%clk 0:01:36]} 33. Rd4 {[%clk 0:01:20]}  a5 {[%clk 0:01:25]} 34. Rd1 {[%clk 0:01:07]}  a4 {[%clk 0:01:22]} 35. Kd2 {[%clk 0:01:07]}  Rb4 {[%clk 0:01:13]} 36. Kc3 {[%clk 0:01:05]}  Rb8 {[%clk 0:01:00]} 37. Rg1 {[%clk 0:01:03]}  Ne4+ {[%clk 0:00:52]} 38. Nxe4 {[%clk 0:01:03]}  fxe4 {[%clk 0:00:51]} 39. Ra1 {[%clk 0:00:59]}  Ra8 {[%clk 0:00:50]} 40. Ra3 {[%clk 0:00:53]}  Rc8+ {[%clk 0:00:48]} 41. Kd2 {[%clk 0:00:47]}  Rc4 {[%clk 0:00:48]} 42. c3 {[%clk 0:00:43]}  Kf7 {[%clk 0:00:40]} 43. g4 {[%clk 0:00:43]}  Kg6 {[%clk 0:00:38]} 44. Ke3 {[%clk 0:00:41]}  Kf7 {[%clk 0:00:33]} 45. f5 {[%clk 0:00:38]}  exf5 {[%clk 0:00:29]} 46. gxf5 {[%clk 0:00:38]}  Ke7 {[%clk 0:00:28]} 47. Kd2 {[%clk 0:00:31]}  Kf7 {[%clk 0:00:21]} 48. Ra1 {[%clk 0:00:31]}  e3+ {[%clk 0:00:20]} 49. Kxe3 {[%clk 0:00:23]}  Re4+ {[%clk 0:00:20]} 50. Kd3 {[%clk 0:00:20]}  Rxe5 {[%clk 0:00:21]} 51. Rxa4 {[%clk 0:00:20]}  Rxf5 {[%clk 0:00:21]} 52. Rh4 {[%clk 0:00:20]}  Rf3+ {[%clk 0:00:22]} 53. Kd4 {[%clk 0:00:20]}  Kg6 {[%clk 0:00:21]} 54. Rh8 {[%clk 0:00:15]}  Kg5 {[%clk 0:00:20]} 55. Rg8+ {[%clk 0:00:11]}  Kh4 {[%clk 0:00:21]} 56. Rh8+ {[%clk 0:00:07]}  Kg4 {[%clk 0:00:21]} 57. Rg8+ {[%clk 0:00:08]}  Kh4 {[%clk 0:00:21]} 58. Rh8+ {[%clk 0:00:08]}  Kg4 {[%clk 0:00:22]} 59. Rg8+ {[%clk 0:00:08]}  Kh4 {[%clk 0:00:22]} 1/2-1/2


[Site "https://www.chess.com"]

[Event "Titled Tuesday Blitz March 29 Early 2022"]
[White "Yang, Kaiqi"]
[Black "Pranav, V"]
[WhiteFideId "8604398"]
[BlackFideId "25060783"]
[WhiteElo "2373"]
[BlackElo "2349"]
[Result "0-1"]
[Round "04"]
[TimeControl "180+1"]
[Date "2022.03.29"]
[WhiteClock "0:00:11"]
[BlackClock "0:00:52"]

1. e4 {[%clk 0:03:00]}  e5 {[%clk 0:02:59]} 2. Nf3 {[%clk 0:03:00]}  Nc6 {[%clk 0:02:59]} 3. d4 {[%clk 0:03:01]}  exd4 {[%clk 0:02:59]} 4. Bc4 {[%clk 0:03:01]}  Nf6 {[%clk 0:02:59]} 5. e5 {[%clk 0:03:01]}  d5 {[%clk 0:02:59]} 6. Bb5 {[%clk 0:03:02]}  Ne4 {[%clk 0:02:59]} 7. Nxd4 {[%clk 0:03:02]}  Bd7 {[%clk 0:03:00]} 8. Bxc6 {[%clk 0:03:03]}  bxc6 {[%clk 0:03:00]} 9. O-O {[%clk 0:03:03]}  Bc5 {[%clk 0:03:01]} 10. f3 {[%clk 0:03:03]}  Ng5 {[%clk 0:03:01]} 11. Be3 {[%clk 0:03:04]}  Bb6 {[%clk 0:03:01]} 12. f4 {[%clk 0:03:03]}  Ne4 {[%clk 0:02:57]} 13. Nd2 {[%clk 0:03:03]}  c5 {[%clk 0:02:56]} 14. N4f3 {[%clk 0:02:54]}  Nxd2 {[%clk 0:02:52]} 15. Qxd2 {[%clk 0:02:55]}  d4 {[%clk 0:02:52]} 16. Bf2 {[%clk 0:02:55]}  Bc6 {[%clk 0:02:53]} 17. Bh4 {[%clk 0:02:55]}  Qd5 {[%clk 0:02:53]} 18. f5 {[%clk 0:02:51]}  Kd7 {[%clk 0:02:35]} 19. e6+ {[%clk 0:02:03]}  fxe6 {[%clk 0:02:26]} 20. fxe6+ {[%clk 0:02:00]}  Kc8 {[%clk 0:02:26]} 21. Rae1 {[%clk 0:01:58]}  Kb7 {[%clk 0:02:25]} 22. Re5 {[%clk 0:01:50]}  Qxa2 {[%clk 0:02:23]} 23. b3 {[%clk 0:01:28]}  Rae8 {[%clk 0:02:16]} 24. Ng5 {[%clk 0:01:18]}  d3 {[%clk 0:01:59]} 25. Bf2 {[%clk 0:00:42]}  dxc2 {[%clk 0:01:48]} 26. Nf7 {[%clk 0:00:25]}  Rhf8 {[%clk 0:01:27]} 27. Bxc5 {[%clk 0:00:20]}  Qb2 {[%clk 0:01:26]} 28. Bxb6 {[%clk 0:00:15]}  axb6 {[%clk 0:01:25]} 29. Re2 {[%clk 0:00:15]}  Rxe6 {[%clk 0:00:54]} 30. Rxe6 {[%clk 0:00:12]}  c1=Q {[%clk 0:00:53]} 31. Qxc1 {[%clk 0:00:11]}  Qxg2# {[%clk 0:00:52]} 0-1


[Site "https://www.chess.com"]

[Event "Titled Tuesday Blitz March 29 Early 2022"]
[White "Yoo, Christopher Woojin"]
[Black "Kosteniuk, Alexandra"]
[WhiteFideId "30909694"]
[BlackFideId "4128125"]
[WhiteElo "2105"]
[BlackElo "2469"]
[Result "1-0"]
[Round "04"]
[TimeControl "180+1"]
[Date "2022.03.29"]
[WhiteClock "0:01:06"]
[BlackClock "0:00:36"]

1. e4 {[%clk 0:03:00]}  e5 {[%clk 0:02:54]} 2. Nf3 {[%clk 0:03:00]}  Nc6 {[%clk 0:02:54]} 3. Bc4 {[%clk 0:02:56]}  Bc5 {[%clk 0:02:52]} 4. c3 {[%clk 0:02:54]}  Nf6 {[%clk 0:02:51]} 5. d4 {[%clk 0:02:55]}  exd4 {[%clk 0:02:52]} 6. b4 {[%clk 0:02:56]}  Bb6 {[%clk 0:02:36]} 7. e5 {[%clk 0:02:39]}  d5 {[%clk 0:02:28]} 8. exf6 {[%clk 0:02:36]}  dxc4 {[%clk 0:02:29]} 9. Qe2+ {[%clk 0:02:36]}  Be6 {[%clk 0:02:27]} 10. b5 {[%clk 0:02:36]}  d3 {[%clk 0:02:03]} 11. Qe4 {[%clk 0:02:26]}  Na5 {[%clk 0:01:47]} 12. fxg7 {[%clk 0:02:18]}  Rg8 {[%clk 0:01:47]} 13. Qxh7 {[%clk 0:02:19]}  Kd7 {[%clk 0:01:47]} 14. Bg5 {[%clk 0:01:47]}  Qe8 {[%clk 0:01:46]} 15. O-O {[%clk 0:01:43]}  a6 {[%clk 0:01:25]} 16. Nbd2 {[%clk 0:01:38]}  f5 {[%clk 0:01:00]} 17. Rae1 {[%clk 0:01:22]}  axb5 {[%clk 0:01:01]} 18. Ne5+ {[%clk 0:01:21]}  Kc8 {[%clk 0:01:00]} 19. Ng6 {[%clk 0:01:18]}  Nc6 {[%clk 0:00:49]} 20. Ne7+ {[%clk 0:01:08]}  Kd7 {[%clk 0:00:37]} 21. Rxe6 {[%clk 0:01:07]}  Kxe6 {[%clk 0:00:36]} 22. Qxf5+ {[%clk 0:01:07]}  Kd6 {[%clk 0:00:36]} 23. Ne4# {[%clk 0:01:06]} 1-0


[Site "https://www.chess.com"]

[Event "Titled Tuesday Blitz March 29 Early 2022"]
[White "Ambartsumova, Karina"]
[Black "Iljin, Timofey"]
[WhiteFideId "4166299"]
[BlackFideId "14110180"]
[WhiteElo "2262"]
[BlackElo "2396"]
[Result "0-1"]
[Round "05"]
[TimeControl "180+1"]
[Date "2022.03.30"]
[WhiteClock "0:00:02"]
[BlackClock "0:00:04"]

1. c4 {[%clk 0:03:00]}  f5 {[%clk 0:02:59]} 2. Nf3 {[%clk 0:03:00]}  Nf6 {[%clk 0:02:59]} 3. g3 {[%clk 0:02:59]}  g6 {[%clk 0:03:00]} 4. Bg2 {[%clk 0:02:59]}  Bg7 {[%clk 0:03:01]} 5. O-O {[%clk 0:02:59]}  O-O {[%clk 0:03:01]} 6. d4 {[%clk 0:03:00]}  d6 {[%clk 0:03:02]} 7. b3 {[%clk 0:02:59]}  Qe8 {[%clk 0:03:02]} 8. Bb2 {[%clk 0:02:59]}  a5 {[%clk 0:03:02]} 9. Nbd2 {[%clk 0:02:53]}  Nc6 {[%clk 0:03:01]} 10. d5 {[%clk 0:02:51]}  Nb8 {[%clk 0:03:01]} 11. Qc2 {[%clk 0:02:50]}  Na6 {[%clk 0:03:01]} 12. a3 {[%clk 0:02:45]}  Bd7 {[%clk 0:02:58]} 13. e4 {[%clk 0:02:32]}  fxe4 {[%clk 0:02:58]} 14. Nxe4 {[%clk 0:02:31]}  Bf5 {[%clk 0:02:52]} 15. Nxf6+ {[%clk 0:02:23]}  Bxf6 {[%clk 0:02:52]} 16. Qd2 {[%clk 0:02:22]}  Nc5 {[%clk 0:02:51]} 17. Nd4 {[%clk 0:02:07]}  Qf7 {[%clk 0:02:46]} 18. Nxf5 {[%clk 0:01:54]}  gxf5 {[%clk 0:02:45]} 19. Qc2 {[%clk 0:01:42]}  Bxb2 {[%clk 0:02:41]} 20. Qxb2 {[%clk 0:01:42]}  f4 {[%clk 0:02:31]} 21. b4 {[%clk 0:01:29]}  Nd3 {[%clk 0:02:26]} 22. Qd4 {[%clk 0:01:25]}  Ne5 {[%clk 0:02:23]} 23. Rae1 {[%clk 0:01:15]}  f3 {[%clk 0:02:19]} 24. Bh3 {[%clk 0:01:15]}  Qh5 {[%clk 0:02:14]} 25. Be6+ {[%clk 0:01:14]}  Kh8 {[%clk 0:02:15]} 26. Re4 {[%clk 0:01:11]}  Rf6 {[%clk 0:02:08]} 27. Rh4 {[%clk 0:01:10]}  Qg5 {[%clk 0:02:05]} 28. Re1 {[%clk 0:01:02]}  axb4 {[%clk 0:01:50]} 29. axb4 {[%clk 0:01:01]}  h6 {[%clk 0:01:43]} 30. c5 {[%clk 0:00:46]}  Ra2 {[%clk 0:00:54]} 31. cxd6 {[%clk 0:00:39]}  exd6 {[%clk 0:00:55]} 32. Qc3 {[%clk 0:00:32]}  Qd2 {[%clk 0:00:39]} 33. Qxd2 {[%clk 0:00:32]}  Rxd2 {[%clk 0:00:40]} 34. Ra1 {[%clk 0:00:32]}  Kg7 {[%clk 0:00:27]} 35. h3 {[%clk 0:00:22]}  c6 {[%clk 0:00:16]} 36. Ra7 {[%clk 0:00:19]}  cxd5 {[%clk 0:00:14]} 37. Rxb7+ {[%clk 0:00:18]}  Kg6 {[%clk 0:00:14]} 38. Bg4 {[%clk 0:00:15]}  Rd1+ {[%clk 0:00:07]} 39. Kh2 {[%clk 0:00:16]}  Nxg4+ {[%clk 0:00:05]} 40. Rxg4+ {[%clk 0:00:16]}  Kf5 {[%clk 0:00:06]} 41. Rf4+ {[%clk 0:00:16]}  Kg6 {[%clk 0:00:02]} 42. Rg4+ {[%clk 0:00:11]}  Kf5 {[%clk 0:00:03]} 43. Rf4+ {[%clk 0:00:07]}  Ke6 {[%clk 0:00:03]} 44. Rxf6+ {[%clk 0:00:06]}  Kxf6 {[%clk 0:00:04]} 45. g4 {[%clk 0:00:07]}  Ke5 {[%clk 0:00:03]} 46. Kg3 {[%clk 0:00:07]}  Rd3 {[%clk 0:00:03]} 47. b5 {[%clk 0:00:02]}  Rb3 {[%clk 0:00:03]} 48. b6 {[%clk 0:00:02]}  d4 {[%clk 0:00:03]} 49. Re7+ {[%clk 0:00:02]}  Kd5 {[%clk 0:00:04]} 0-1


[Site "https://www.chess.com"]

[Event "Titled Tuesday Blitz March 29 Early 2022"]
[White "Andreikin, Dmitry"]
[Black "Bortnyk, Olexandr"]
[WhiteFideId "4158814"]
[BlackFideId "14120828"]
[WhiteElo "2736"]
[BlackElo "2723"]
[Result "1/2-1/2"]
[Round "05"]
[TimeControl "180+1"]
[Date "2022.03.29"]
[WhiteClock "0:00:06"]
[BlackClock "0:00:03"]

1. d4 {[%clk 0:03:00]}  d6 {[%clk 0:02:56]} 2. e4 {[%clk 0:02:58]}  Nf6 {[%clk 0:02:55]} 3. f3 {[%clk 0:02:59]}  e5 {[%clk 0:02:37]} 4. dxe5 {[%clk 0:03:00]}  dxe5 {[%clk 0:02:36]} 5. Qxd8+ {[%clk 0:03:01]}  Kxd8 {[%clk 0:02:36]} 6. Be3 {[%clk 0:03:00]}  Be6 {[%clk 0:02:34]} 7. Nd2 {[%clk 0:03:00]}  Nfd7 {[%clk 0:02:28]} 8. Bc4 {[%clk 0:02:58]}  Bxc4 {[%clk 0:02:24]} 9. Nxc4 {[%clk 0:02:59]}  Nc6 {[%clk 0:02:23]} 10. O-O-O {[%clk 0:02:59]}  Kc8 {[%clk 0:01:45]} 11. Nh3 {[%clk 0:02:59]}  f6 {[%clk 0:01:43]} 12. Nf2 {[%clk 0:02:57]}  b5 {[%clk 0:01:41]} 13. Nd2 {[%clk 0:02:56]}  Bc5 {[%clk 0:01:42]} 14. Rhe1 {[%clk 0:02:55]}  a5 {[%clk 0:01:37]} 15. Nd3 {[%clk 0:02:49]}  Bxe3 {[%clk 0:01:35]} 16. Rxe3 {[%clk 0:02:50]}  a4 {[%clk 0:01:30]} 17. a3 {[%clk 0:02:47]}  Rd8 {[%clk 0:01:26]} 18. Nb1 {[%clk 0:02:46]}  Nd4 {[%clk 0:01:25]} 19. Nc3 {[%clk 0:02:42]}  c6 {[%clk 0:01:25]} 20. Ne2 {[%clk 0:02:36]}  Ne6 {[%clk 0:00:58]} 21. Nb4 {[%clk 0:02:29]}  Kc7 {[%clk 0:00:53]} 22. Rc3 {[%clk 0:02:28]}  Ndc5 {[%clk 0:00:53]} 23. f4 {[%clk 0:02:07]}  Rxd1+ {[%clk 0:00:38]} 24. Kxd1 {[%clk 0:02:07]}  Rd8+ {[%clk 0:00:38]} 25. Ke1 {[%clk 0:02:08]}  exf4 {[%clk 0:00:30]} 26. Nxf4 {[%clk 0:02:06]}  Nxf4 {[%clk 0:00:29]} 27. Rxc5 {[%clk 0:02:06]}  Rd6 {[%clk 0:00:20]} 28. g3 {[%clk 0:02:05]}  Ne6 {[%clk 0:00:20]} 29. Rc3 {[%clk 0:01:56]}  Ng5 {[%clk 0:00:20]} 30. Na6+ {[%clk 0:01:51]}  Kb6 {[%clk 0:00:17]} 31. Nc5 {[%clk 0:01:51]}  Rd4 {[%clk 0:00:16]} 32. e5 {[%clk 0:01:39]}  fxe5 {[%clk 0:00:15]} 33. Ke2 {[%clk 0:01:38]}  Rd5 {[%clk 0:00:11]} 34. b4 {[%clk 0:01:34]}  axb3 {[%clk 0:00:12]} 35. Nxb3 {[%clk 0:01:34]}  Ne6 {[%clk 0:00:11]} 36. Re3 {[%clk 0:01:33]}  g6 {[%clk 0:00:08]} 37. h4 {[%clk 0:01:27]}  h5 {[%clk 0:00:07]} 38. c3 {[%clk 0:01:25]}  Ng7 {[%clk 0:00:06]} 39. Nd2 {[%clk 0:01:25]}  Nf5 {[%clk 0:00:07]} 40. Rf3 {[%clk 0:01:25]}  Rd8 {[%clk 0:00:05]} 41. Ne4 {[%clk 0:01:18]}  Ra8 {[%clk 0:00:05]} 42. Nf6 {[%clk 0:01:19]}  Kc7 {[%clk 0:00:05]} 43. Nxh5 {[%clk 0:01:17]}  Rxa3 {[%clk 0:00:04]} 44. Nf6 {[%clk 0:01:17]}  Ra2+ {[%clk 0:00:03]} 45. Kd3 {[%clk 0:01:18]}  Rg2 {[%clk 0:00:03]} 46. Ne4 {[%clk 0:01:18]}  Kb6 {[%clk 0:00:03]} 47. h5 {[%clk 0:01:18]}  Ne7 {[%clk 0:00:02]} 48. Rf7 {[%clk 0:01:18]}  gxh5 {[%clk 0:00:01]} 49. Rxe7 {[%clk 0:01:18]}  h4 {[%clk 0:00:01]} 50. gxh4 {[%clk 0:01:17]}  Rh2 {[%clk 0:00:02]} 51. Rh7 {[%clk 0:01:13]}  Rh3+ {[%clk 0:00:02]} 52. Kc2 {[%clk 0:01:13]}  Re3 {[%clk 0:00:03]} 53. Nf6 {[%clk 0:01:10]}  Kc5 {[%clk 0:00:03]} 54. Kd2 {[%clk 0:00:59]}  Rh3 {[%clk 0:00:03]} 55. Ne4+ {[%clk 0:00:45]}  Kc4 {[%clk 0:00:02]} 56. Nd6+ {[%clk 0:00:45]}  Kd5 {[%clk 0:00:02]} 57. Nf5 {[%clk 0:00:46]}  c5 {[%clk 0:00:02]} 58. h5 {[%clk 0:00:44]}  b4 {[%clk 0:00:02]} 59. cxb4 {[%clk 0:00:43]}  cxb4 {[%clk 0:00:03]} 60. h6 {[%clk 0:00:43]}  Ke6 {[%clk 0:00:04]} 61. Ne3 {[%clk 0:00:40]}  Kf6 {[%clk 0:00:04]} 62. Rb7 {[%clk 0:00:37]}  Kg5 {[%clk 0:00:05]} 63. h7 {[%clk 0:00:30]}  Kg6 {[%clk 0:00:05]} 64. Ng4 {[%clk 0:00:25]}  Rxh7 {[%clk 0:00:05]} 65. Nxe5+ {[%clk 0:00:26]}  Kh6 {[%clk 0:00:06]} 66. Rxb4 {[%clk 0:00:23]}  Re7 {[%clk 0:00:06]} 67. Rb5 {[%clk 0:00:21]}  Ra7 {[%clk 0:00:05]} 68. Ke3 {[%clk 0:00:22]}  Ra4 {[%clk 0:00:06]} 69. Nf3 {[%clk 0:00:19]}  Kg6 {[%clk 0:00:06]} 70. Nd4 {[%clk 0:00:19]}  Kf6 {[%clk 0:00:06]} 71. Ke4 {[%clk 0:00:19]}  Kg6 {[%clk 0:00:07]} 72. Rb8 {[%clk 0:00:18]}  Kg5 {[%clk 0:00:08]} 73. Rf8 {[%clk 0:00:18]}  Kg6 {[%clk 0:00:08]} 74. Ke5 {[%clk 0:00:18]}  Ra5+ {[%clk 0:00:07]} 75. Kd6 {[%clk 0:00:17]}  Ra6+ {[%clk 0:00:08]} 76. Nc6 {[%clk 0:00:18]}  Kg5 {[%clk 0:00:08]} 77. Kd5 {[%clk 0:00:18]}  Kg6 {[%clk 0:00:08]} 78. Ne5+ {[%clk 0:00:16]}  Kg5 {[%clk 0:00:09]} 79. Nc4 {[%clk 0:00:14]}  Kg6 {[%clk 0:00:08]} 80. Nd6 {[%clk 0:00:15]}  Kg5 {[%clk 0:00:08]} 81. Ke6 {[%clk 0:00:14]}  Kg4 {[%clk 0:00:08]} 82. Rf1 {[%clk 0:00:13]}  Ra5 {[%clk 0:00:07]} 83. Nf5 {[%clk 0:00:11]}  Ra6+ {[%clk 0:00:07]} 84. Ke5 {[%clk 0:00:12]}  Ra5+ {[%clk 0:00:07]} 85. Ke4 {[%clk 0:00:12]}  Ra4+ {[%clk 0:00:08]} 86. Nd4 {[%clk 0:00:12]}  Kg5 {[%clk 0:00:08]} 87. Rf2 {[%clk 0:00:09]}  Kg6 {[%clk 0:00:07]} 88. Rb2 {[%clk 0:00:07]}  Kg5 {[%clk 0:00:07]} 89. Rb5+ {[%clk 0:00:08]}  Kg6 {[%clk 0:00:07]} 90. Ke5 {[%clk 0:00:07]}  Ra6 {[%clk 0:00:08]} 91. Kf4 {[%clk 0:00:06]}  Ra4 {[%clk 0:00:08]} 92. Rb6+ {[%clk 0:00:06]}  Kf7 {[%clk 0:00:07]} 93. Ke4 {[%clk 0:00:06]}  Ke7 {[%clk 0:00:06]} 94. Kd5 {[%clk 0:00:05]}  Ra5+ {[%clk 0:00:06]} 95. Nb5 {[%clk 0:00:05]}  Ra1 {[%clk 0:00:06]} 96. Re6+ {[%clk 0:00:04]}  Kd7 {[%clk 0:00:05]} 97. Rh6 {[%clk 0:00:03]}  Rd1+ {[%clk 0:00:04]} 98. Nd4 {[%clk 0:00:03]}  Kc7 {[%clk 0:00:04]} 99. Rh7+ {[%clk 0:00:03]}  Kb6 {[%clk 0:00:05]} 100. Rg7 {[%clk 0:00:04]}  Rd2 {[%clk 0:00:04]} 101. Rg1 {[%clk 0:00:04]}  Kc7 {[%clk 0:00:03]} 102. Rb1 {[%clk 0:00:04]}  Rd3 {[%clk 0:00:03]} 103. Ke4 {[%clk 0:00:04]}  Rh3 {[%clk 0:00:02]} 104. Nf5 {[%clk 0:00:04]}  Kc6 {[%clk 0:00:02]} 105. Ke5 {[%clk 0:00:04]}  Kc5 {[%clk 0:00:02]} 106. Rc1+ {[%clk 0:00:04]}  Kb5 {[%clk 0:00:03]} 107. Kd5 {[%clk 0:00:04]}  Rh5 {[%clk 0:00:03]} 108. Rb1+ {[%clk 0:00:04]}  Ka5 {[%clk 0:00:03]} 109. Ke4 {[%clk 0:00:04]}  Ka4 {[%clk 0:00:03]} 110. Nd4 {[%clk 0:00:05]}  Rh4+ {[%clk 0:00:03]} 111. Kd5 {[%clk 0:00:05]}  Ka5 {[%clk 0:00:04]} 112. Kc4 {[%clk 0:00:05]}  Ka6 {[%clk 0:00:04]} 113. Rb2 {[%clk 0:00:05]}  Ka7 {[%clk 0:00:04]} 114. Kc5 {[%clk 0:00:05]}  Rh5+ {[%clk 0:00:03]} 115. Kd6 {[%clk 0:00:05]}  Rh6+ {[%clk 0:00:03]} 116. Ne6 {[%clk 0:00:06]} 1/2-1/2


[Site "https://www.chess.com"]

[Event "Titled Tuesday Blitz March 29 Early 2022"]
[White "Araujo Filho, Luiz Antonio Coel"]
[Black "Aslanov, Umid"]
[WhiteFideId "2130661"]
[BlackFideId "13412620"]
[WhiteElo "2275"]
[BlackElo "1796"]
[Result "0-1"]
[Round "05"]
[TimeControl "180+1"]
[Date "2022.03.30"]
[WhiteClock "0:00:01"]
[BlackClock "0:01:34"]

1. d4 {[%clk 0:03:00]}  d5 {[%clk 0:03:00]} 2. Nf3 {[%clk 0:02:59]}  Nf6 {[%clk 0:02:59]} 3. e3 {[%clk 0:02:59]}  c5 {[%clk 0:02:59]} 4. c3 {[%clk 0:02:59]}  Nc6 {[%clk 0:02:59]} 5. Nbd2 {[%clk 0:02:58]}  Bf5 {[%clk 0:02:57]} 6. Qa4 {[%clk 0:02:58]}  a6 {[%clk 0:02:51]} 7. dxc5 {[%clk 0:02:58]}  e6 {[%clk 0:02:50]} 8. b4 {[%clk 0:02:57]}  Be7 {[%clk 0:02:45]} 9. Be2 {[%clk 0:02:55]}  O-O {[%clk 0:02:44]} 10. Nd4 {[%clk 0:02:54]}  Nxd4 {[%clk 0:02:44]} 11. cxd4 {[%clk 0:02:54]}  Be4 {[%clk 0:02:42]} 12. O-O {[%clk 0:02:50]}  Bg6 {[%clk 0:02:38]} 13. Qb3 {[%clk 0:02:47]}  b5 {[%clk 0:02:36]} 14. Bb2 {[%clk 0:02:37]}  Qc7 {[%clk 0:02:33]} 15. a4 {[%clk 0:02:36]}  bxa4 {[%clk 0:02:32]} 16. Rxa4 {[%clk 0:02:36]}  Nd7 {[%clk 0:02:33]} 17. Rfa1 {[%clk 0:02:32]}  Rfb8 {[%clk 0:02:28]} 18. Rxa6 {[%clk 0:02:30]}  Rxa6 {[%clk 0:02:29]} 19. Rxa6 {[%clk 0:02:30]}  Bf6 {[%clk 0:02:29]} 20. b5 {[%clk 0:02:25]}  e5 {[%clk 0:02:28]} 21. Qxd5 {[%clk 0:02:17]}  exd4 {[%clk 0:02:28]} 22. exd4 {[%clk 0:02:17]}  Qf4 {[%clk 0:02:24]} 23. Nf1 {[%clk 0:01:59]}  Rd8 {[%clk 0:02:20]} 24. Rd6 {[%clk 0:01:54]}  Be4 {[%clk 0:02:16]} 25. Qb3 {[%clk 0:01:25]}  Be7 {[%clk 0:02:14]} 26. Ra6 {[%clk 0:01:13]}  Bxc5 {[%clk 0:02:09]} 27. Bc4 {[%clk 0:00:39]}  Bb6 {[%clk 0:01:50]} 28. Bc3 {[%clk 0:00:21]}  Qg5 {[%clk 0:01:44]} 29. Ng3 {[%clk 0:00:09]}  Qc1+ {[%clk 0:01:44]} 30. Bf1 {[%clk 0:00:09]}  Bg6 {[%clk 0:01:44]} 31. Qb2 {[%clk 0:00:08]}  Qf4 {[%clk 0:01:36]} 32. Ra2 {[%clk 0:00:02]}  h5 {[%clk 0:01:34]} 33. h3 {[%clk 0:00:01]}  h4 {[%clk 0:01:34]} 0-1


[Site "https://www.chess.com"]

[Event "Titled Tuesday Blitz March 29 Early 2022"]
[White "Aravindh, Chithambaram VR."]
[Black "Fier, Alexandr"]
[WhiteFideId "5072786"]
[BlackFideId "2107139"]
[WhiteElo "2561"]
[BlackElo "2571"]
[Result "1-0"]
[Round "05"]
[TimeControl "180+1"]
[Date "2022.03.29"]
[WhiteClock "0:00:07"]
[BlackClock "0:00:21"]

1. b3 {[%clk 0:03:00]}  e5 {[%clk 0:02:59]} 2. Bb2 {[%clk 0:03:01]}  Nc6 {[%clk 0:02:59]} 3. e3 {[%clk 0:03:01]}  Nf6 {[%clk 0:03:00]} 4. Bb5 {[%clk 0:03:01]}  Bd6 {[%clk 0:03:00]} 5. Na3 {[%clk 0:03:01]}  Na5 {[%clk 0:03:01]} 6. Be2 {[%clk 0:03:00]}  a6 {[%clk 0:03:01]} 7. Nf3 {[%clk 0:03:00]}  e4 {[%clk 0:02:56]} 8. Nd4 {[%clk 0:03:00]}  Nc6 {[%clk 0:02:55]} 9. Nf5 {[%clk 0:02:59]}  Bf8 {[%clk 0:02:54]} 10. d3 {[%clk 0:02:43]}  d5 {[%clk 0:02:50]} 11. dxe4 {[%clk 0:02:41]}  dxe4 {[%clk 0:02:26]} 12. Qxd8+ {[%clk 0:02:40]}  Nxd8 {[%clk 0:02:27]} 13. Ng3 {[%clk 0:02:30]}  Bb4+ {[%clk 0:02:27]} 14. c3 {[%clk 0:02:29]}  Be7 {[%clk 0:02:26]} 15. O-O-O {[%clk 0:02:25]}  Ne6 {[%clk 0:02:25]} 16. c4 {[%clk 0:02:24]}  Nc5 {[%clk 0:02:21]} 17. Nc2 {[%clk 0:02:16]}  a5 {[%clk 0:02:11]} 18. Nd4 {[%clk 0:02:13]}  O-O {[%clk 0:01:43]} 19. Ndf5 {[%clk 0:01:46]}  Bd8 {[%clk 0:01:40]} 20. Rd2 {[%clk 0:01:17]}  b6 {[%clk 0:01:38]} 21. Rhd1 {[%clk 0:01:11]}  Bb7 {[%clk 0:01:37]} 22. f4 {[%clk 0:00:44]}  exf3 {[%clk 0:01:32]} 23. gxf3 {[%clk 0:00:44]}  Re8 {[%clk 0:01:13]} 24. Rg1 {[%clk 0:00:33]}  Ne6 {[%clk 0:01:08]} 25. Nxg7 {[%clk 0:00:26]}  Kxg7 {[%clk 0:01:00]} 26. Nh5+ {[%clk 0:00:26]}  Kh6 {[%clk 0:00:44]} 27. Nxf6 {[%clk 0:00:26]}  Bxf6 {[%clk 0:00:42]} 28. Bxf6 {[%clk 0:00:27]}  Rg8 {[%clk 0:00:39]} 29. Rdd1 {[%clk 0:00:26]}  Rg6 {[%clk 0:00:36]} 30. Be5 {[%clk 0:00:22]}  Re8 {[%clk 0:00:34]} 31. Rg3 {[%clk 0:00:16]}  f6 {[%clk 0:00:32]} 32. Rxg6+ {[%clk 0:00:10]}  Kxg6 {[%clk 0:00:31]} 33. Bg3 {[%clk 0:00:10]}  Ng5 {[%clk 0:00:31]} 34. e4 {[%clk 0:00:05]}  Bc6 {[%clk 0:00:29]} 35. Bxc7 {[%clk 0:00:05]}  Ne6 {[%clk 0:00:27]} 36. Bxb6 {[%clk 0:00:05]}  Nf4 {[%clk 0:00:28]} 37. Bf1 {[%clk 0:00:06]}  a4 {[%clk 0:00:27]} 38. Be3 {[%clk 0:00:06]}  Ne6 {[%clk 0:00:27]} 39. b4 {[%clk 0:00:06]}  f5 {[%clk 0:00:28]} 40. b5 {[%clk 0:00:06]}  Bb7 {[%clk 0:00:28]} 41. c5 {[%clk 0:00:06]}  fxe4 {[%clk 0:00:28]} 42. c6 {[%clk 0:00:07]}  Ba8 {[%clk 0:00:25]} 43. fxe4 {[%clk 0:00:07]}  Nc7 {[%clk 0:00:25]} 44. Bc4 {[%clk 0:00:05]}  Rb8 {[%clk 0:00:20]} 45. Bf4 {[%clk 0:00:05]}  Rxb5 {[%clk 0:00:20]} 46. Bxb5 {[%clk 0:00:05]}  Nxb5 {[%clk 0:00:21]} 47. c7 {[%clk 0:00:06]}  Nxc7 {[%clk 0:00:21]} 48. Bxc7 {[%clk 0:00:07]}  Bxe4 {[%clk 0:00:21]} 49. Rd4 {[%clk 0:00:07]}  Bc6 {[%clk 0:00:21]} 50. Rd6+ {[%clk 0:00:07]} 1-0


[Site "https://www.chess.com"]